bitfinex/quotes_SOLUSD_20250201
["timestamp","ask_amount","ask_price","bid_price","bid_amount"]
[1738414281466,82.6,229.12,229.06,10.93866269]
[1738414283383,82.6,229.12,229.07,8.05866269]
[1738414283872,82.6,229.12,229.08,9.60706269]
[1738414285153,82.6,229.12,229.08,1.5484]
[1738414287060,8.05866269,229.14,229.08,1.5484]
[1738414287261,8.05866269,229.14,229.08,5.9136]
[1738414288776,8.05866269,229.16,229.09,17.77684853]
[1738414292185,8.05866269,229.17,229.09,25.83551122]
[1738414294188,8.05866269,229.16,229.09,25.83551122]
[1738414295485,8.05866269,229.18,229.11,8.05866269]
[1738414295859,8.05866269,229.19,229.12,8.05866269]
[1738414296079,8.05866269,229.17,229.1,8.05866269]
[1738414296279,8.05866269,229.15,229.08,16.17266269]
[1738414296469,8.05866269,229.14,229.08,8.114]
[1738414296876,8.05866269,229.14,229.09,13.41184853]
[1738414297390,82.6,229.2,229.09,13.41184853]
[1738414297391,8.05866269,229.15,229.09,13.41184853]
[1738414298887,8.05866269,229.16,229.09,21.47051122]
[1738414299689,8.05866269,229.17,229.1,8.05866269]
[1738414301484,8.05866269,229.17,229.1,12.42346269]
[1738414301790,32.23465076,229.24,229.11,13.41184853]
[1738414301980,21.57605802,229.38,229.27,1.5245]
[1738414302293,13.51739533,229.38,229.29,8.05866269]
[1738414302499,8.05866269,229.33,229.27,1.5245]
[1738414302700,8.05866269,229.31,229.24,6.1989]
[1738414303274,8.05866269,229.31,229.21,1.5245]
[1738414303275,8.05866269,229.31,229.22,5.16647871]
[1738414303484,8.05866269,229.29,229.22,8.18647871]
[1738414303895,8.05866269,229.29,229.22,5.16647871]
[1738414304096,8.05866269,229.29,229.22,8.18647871]
[1738414304598,8.05866269,229.29,229.22,5.16647871]
[1738414304798,8.05866269,229.29,229.22,8.18647871]
[1738414304991,8.05866269,229.29,229.22,3.02]
[1738414305896,6.75869766,229.37,229.22,3.02]
[1738414306079,8.05866269,229.31,229.22,3.02]
[1738414306508,8.05866269,229.31,229.23,8.05866269]
[1738414306700,8.05866269,229.32,229.24,8.05866269]
[1738414308304,82.6,229.37,229.26,8.05866269]
[1738414308305,8.05866269,229.34,229.26,8.05866269]
[1738414308600,8.05866269,229.35,229.27,8.05866269]
[1738414308798,8.05866269,229.35,229.28,13.41184853]
[1738414308995,8.05866269,229.36,229.29,8.05866269]
[1738414309382,90.65866269,229.37,229.3,8.05866269]
[1738414310101,15.42984849,229.39,229.33,8.05866269]
[1738414310399,15.42984849,229.39,229.34,13.41184853]
[1738414310786,15.42984849,229.39,229.34,21.47051122]
[1738414311099,15.42984849,229.39,229.35,8.05866269]
[1738414311485,15.42984849,229.39,229.35,15.41866269]
[1738414312182,15.42984849,229.39,229.35,11.05866269]
[1738414313176,15.42984849,229.39,229.32,8.05866269]
[1738414313177,23.48851118,229.39,229.32,8.05866269]
[1738414313379,8.05866269,229.38,229.33,3.0]
[1738414313604,23.48851118,229.39,229.33,3.0]
[1738414313896,23.48851118,229.39,229.32,8.05866269]
[1738414314105,8.05866269,229.38,229.31,19.22626269]
[1738414315279,23.48851118,229.39,229.32,8.05866269]
[1738414315491,15.42984849,229.39,229.33,8.05866269]
[1738414315692,15.42984849,229.39,229.34,8.05866269]
[1738414317597,15.42984849,229.39,229.33,8.05866269]
[1738414317793,15.42984849,229.39,229.34,8.05866269]
[1738414318192,15.42984849,229.39,229.33,12.41906269]
[1738414320912,15.42984849,229.39,229.34,8.05866269]
[1738414321296,23.48851118,229.39,229.32,8.05866269]
[1738414321498,8.05866269,229.38,229.31,16.22626269]
[1738414321724,8.05866269,229.38,229.31,12.71146269]
[1738414323399,8.05866269,229.38,229.31,8.05866269]
[1738414324209,0.3,229.4,229.36,8.05866269]
[1738414324408,0.3,229.4,229.37,8.05866269]
[1738414324611,0.3,229.4,229.36,8.05866269]
[1738414325104,0.3,229.4,229.37,8.05866269]
[1738414325316,0.3,229.4,229.38,8.05866269]
[1738414326417,0.3,229.4,229.39,8.05866269]
[1738414326601,0.3,229.4,229.38,8.05866269]
[1738414326801,0.3,229.4,229.37,8.05866269]
[1738414328119,0.3,229.4,229.37,12.41836269]
[1738414328499,0.3,229.4,229.39,8.05866269]
[1738414328704,0.3,229.4,229.39,21.47051122]
[1738414329521,0.3,229.4,229.39,25.82981122]
[1738414330236,0.0001,229.4,229.39,25.82981122]
[1738414330398,8.05866269,229.56,229.43,20.0]
[1738414330602,8.05866269,229.57,229.51,8.05866269]
[1738414332307,8.05866269,229.57,229.51,4.357]
[1738414333020,8.05866269,229.57,229.51,12.41566269]
[1738414333524,8.05866269,229.57,229.51,8.05866269]
[1738414333721,8.05866269,229.57,229.5,8.05866269]
[1738414333914,8.05866269,229.55,229.48,12.41626269]
[1738414334706,8.05866269,229.56,229.5,8.05866269]
[1738414335923,8.05866269,229.56,229.49,12.41606269]
[1738414336125,8.05866269,229.59,229.53,8.05866269]
[1738414336508,8.05866269,229.6,229.53,8.05866269]
[1738414336813,8.05866269,229.57,229.51,8.05866269]
[1738414337022,8.05866269,229.57,229.5,8.05866269]
[1738414337320,8.05866269,229.56,229.5,20.0]
[1738414337522,8.05866269,229.55,229.5,20.0]
[1738414337735,8.05866269,229.56,229.49,8.05866269]
[1738414338931,8.05866269,229.55,229.48,8.05866269]
[1738414339116,8.05866269,229.53,229.47,28.05866269]
[1738414339436,8.05866269,229.53,229.47,11.07866269]
[1738414339836,8.05866269,229.54,229.47,11.07866269]
[1738414340036,8.05866269,229.53,229.47,8.05866269]
[1738414340336,8.05866269,229.53,229.46,15.43656269]
[1738414340628,8.05866269,229.52,229.46,24.3579]
[1738414340836,8.05866269,229.52,229.46,27.3579]
[1738414341041,8.05866269,229.51,229.44,8.05866269]
[1738414341338,8.05866269,229.5,229.44,4.3582]
[1738414341530,8.05866269,229.5,229.44,12.41686269]
[1738414341751,8.05866269,229.51,229.44,12.41686269]
[1738414343211,8.05866269,229.5,229.44,4.3582]
[1738414343431,8.05866269,229.5,229.44,12.41686269]
[1738414346545,8.05866269,229.5,229.44,4.3582]
[1738414346726,8.05866269,229.5,229.38,39.2439]
[1738414346727,8.05866269,229.45,229.35,8.05866269]
[1738414346939,8.05866269,229.43,229.36,8.05866269]
[1738414347137,8.05866269,229.44,229.38,13.41184853]
[1738414347438,8.05866269,229.42,229.38,20.0]
[1738414347631,8.05866269,229.4,229.34,11.67656038]
[1738414347931,8.05866269,229.4,229.35,4.36]
[1738414348538,8.05866269,229.4,229.35,6.9202659]
[1738414349221,32.23465076,229.46,229.35,2.5602659]
[1738414349222,8.05866269,229.39,229.35,2.5602659]
[1738414349623,8.05866269,229.4,229.35,2.5602659]
[1738414349823,8.05866269,229.41,229.36,4.3599]
[1738414350032,8.05866269,229.45,229.38,8.05866269]
[1738414350346,8.05866269,229.46,229.39,8.05866269]
[1738414350726,8.05866269,229.45,229.38,8.05866269]
[1738414351426,8.05866269,229.41,229.36,4.3598]
[1738414351627,8.05866269,229.39,229.34,7.3802]
[1738414351828,8.05866269,229.4,229.34,7.3802]
[1738414352951,8.05866269,229.4,229.34,15.43886269]
[1738414353250,8.05866269,229.42,229.36,8.05866269]
[1738414353435,8.05866269,229.46,229.39,8.05866269]
[1738414353638,8.05866269,229.5,229.43,8.05866269]
[1738414353838,8.05866269,229.51,229.44,8.05866269]
[1738414354039,8.05866269,229.52,229.41,13.41184853]
[1738414354356,8.05866269,229.51,229.44,8.05866269]
[1738414354736,8.05866269,229.47,229.4,8.05866269]
[1738414354949,8.05866269,229.45,229.39,4.3593]
[1738414355460,8.05866269,229.46,229.39,12.41796269]
[1738414355628,8.05866269,229.45,229.39,4.3593]
[1738414355829,12.54994348,229.45,229.39,4.3593]
[1738414356248,12.54994348,229.46,229.39,16.90924348]
[1738414356631,12.54994348,229.45,229.39,4.3593]
[1738414357861,12.54994348,229.44,229.39,4.3593]
[1738414358156,1.5017,229.54,229.38,20.0]
[1738414358157,12.54994348,229.48,229.41,12.54994348]
[1738414358459,12.54994348,229.53,229.45,12.54994348]
[1738414358649,12.54994348,229.51,229.45,12.54994348]
[1738414358950,12.54994348,229.51,229.43,32.54994348]
[1738414359352,12.54994348,229.51,229.44,4.3584]
[1738414359735,12.54994348,229.58,229.5,12.54994348]
[1738414360833,12.54994348,229.56,229.51,4.3571]
[1738414361033,12.54994348,229.54,229.47,4.3578]
[1738414361539,12.54994348,229.52,229.47,24.3578]
[1738414361853,12.54994348,229.52,229.47,4.3578]
[1738414363555,1.6524,229.61,229.47,4.3578]
[1738414363556,12.54994348,229.55,229.47,4.3578]
[1738414364759,12.54994348,229.54,229.47,4.3578]
[1738414365652,12.54994348,229.53,229.47,4.3578]
[1738414366341,12.54994348,229.52,229.47,4.3578]
[1738414366543,12.54994348,229.51,229.47,4.3578]
[1738414366759,12.54994348,229.5,229.45,27.398]
[1738414366934,12.54994348,229.51,229.45,24.358]
[1738414367549,12.54994348,229.5,229.45,24.358]
[1738414367734,12.54994348,229.5,229.45,4.358]
[1738414367936,12.54994348,229.5,229.4,18.6553]
[1738414367937,12.54994348,229.47,229.4,10.7975]
[1738414368465,12.54994348,229.47,229.4,23.34744348]
[1738414368761,12.54994348,229.47,229.41,4.3588]
[1738414368937,12.54994348,229.45,229.4,1.5967]
[1738414369131,12.54994348,229.45,229.4,5.9558]
[1738414369348,12.54994348,229.46,229.4,5.9558]
[1738414371462,12.54994348,229.42,229.36,4.3599]
[1738414371637,12.54994348,229.41,229.36,7.3999]
[1738414371845,12.54994348,229.41,229.36,4.3599]
[1738414372157,12.54994348,229.4,229.36,4.3599]
[1738414372658,12.54994348,229.41,229.36,4.3599]
[1738414372835,12.54994348,229.44,229.37,12.54994348]
[1738414374158,12.54994348,229.44,229.38,4.3595]
[1738414375758,12.54994348,229.44,229.36,12.54994348]
[1738414375939,12.54994348,229.44,229.36,16.90984348]
[1738414376845,12.54994348,229.49,229.42,12.54994348]
[1738414377164,12.54994348,229.5,229.43,12.54994348]
[1738414377366,12.54994348,229.5,229.42,12.54994348]
[1738414377568,12.54994348,229.49,229.41,12.54994348]
[1738414378248,12.54994348,229.49,229.42,4.3588]
[1738414378566,12.54994348,229.49,229.42,16.90874348]
[1738414379438,12.54994348,229.5,229.43,16.90844348]
[1738414380371,13.41184853,229.56,229.43,4.3585]
[1738414380566,12.54994348,229.49,229.42,12.54994348]
[1738414380957,12.54994348,229.48,229.41,32.54994348]
[1738414381272,12.54994348,229.48,229.41,20.0]
[1738414382148,12.54994348,229.46,229.41,4.359]
[1738414383077,13.41184853,229.56,229.41,4.359]
[1738414383078,12.54994348,229.45,229.41,4.359]
[1738414383290,12.54994348,229.45,229.38,23.44884348]
[1738414383291,12.54994348,229.45,229.39,4.3593]
[1738414383786,12.54994348,229.45,229.4,3.22311189]
[1738414385390,12.54994348,229.45,229.39,4.3592]
[1738414385676,12.54994348,229.43,229.36,16.90984348]
[1738414385857,12.54994348,229.44,229.37,12.54994348]
[1738414386669,12.54994348,229.45,229.37,12.54994348]
[1738414386873,12.54994348,229.45,229.38,12.54994348]
[1738414387171,1.6236,229.51,229.36,4.3599]
[1738414387172,12.54994348,229.47,229.4,12.54994348]
[1738414387362,1.07711022,229.58,229.43,12.54994348]
[1738414387363,12.54994348,229.5,229.43,12.54994348]
[1738414387562,12.54994348,229.51,229.44,12.54994348]
[1738414388959,12.54994348,229.52,229.45,16.90814348]
[1738414389553,12.54994348,229.53,229.45,16.90814348]
[1738414390161,12.54994348,229.55,229.47,12.54994348]
[1738414390483,12.54994348,229.55,229.48,12.54994348]
[1738414391172,12.54994348,229.56,229.48,12.54994348]
[1738414391357,12.54994348,229.56,229.49,4.3574]
[1738414394379,12.54994348,229.54,229.49,4.3574]
[1738414394562,12.54994348,229.55,229.49,4.3574]
[1738414395787,12.54994348,229.55,229.47,12.54994348]
[1738414396885,12.54994348,229.54,229.47,12.54994348]
[1738414397084,12.54994348,229.53,229.48,4.3576]
[1738414397386,12.54994348,229.53,229.48,24.3576]
[1738414398094,12.54994348,229.53,229.46,4.358]
[1738414399090,12.54994348,229.53,229.46,16.90794348]
[1738414401807,12.54994348,229.53,229.46,4.358]
[1738414402793,12.54994348,229.52,229.46,4.358]
[1738414403790,12.54994348,229.5,229.45,9.3233]
[1738414403975,12.54994348,229.5,229.45,6.3033]
[1738414404171,12.54994348,229.51,229.45,10.6615]
[1738414404676,12.54994348,229.52,229.45,23.21144348]
[1738414405290,12.54994348,229.51,229.45,4.3582]
[1738414407574,12.54994348,229.48,229.44,1.5731]
[1738414407774,8.03013561,229.48,229.44,1.5731]
[1738414407974,8.03013561,229.49,229.44,5.9314]
[1738414408180,8.03013561,229.48,229.44,5.9314]
[1738414409699,8.03013561,229.47,229.44,1.5731]
[1738414409874,8.03013561,229.45,229.39,10.8904]
[1738414410073,8.03013561,229.44,229.39,10.8904]
[1738414411599,8.03013561,229.43,229.39,6.5312]
[1738414411782,8.03013561,229.42,229.38,1.5744]
[1738414412184,8.03013561,229.42,229.38,5.9339]
[1738414415199,8.03013561,229.42,229.36,4.3599]
[1738414415395,8.03013561,229.4,229.34,4.3602]
[1738414417286,8.03013561,229.41,229.34,12.39033561]
[1738414418005,8.03013561,229.4,229.34,12.39033561]
[1738414421024,8.03013561,229.4,229.33,8.03013561]
[1738414421323,21.5187,229.45,229.32,8.03013561]
[1738414421324,8.03013561,229.39,229.32,8.03013561]
[1738414421726,8.03013561,229.4,229.33,8.03013561]
[1738414422019,8.03013561,229.39,229.32,8.03013561]
[1738414422192,8.03013561,229.4,229.33,12.39063561]
[1738414422820,8.03013561,229.41,229.34,8.03013561]
[1738414423402,8.03013561,229.41,229.33,4.3605]
[1738414423608,8.03013561,229.4,229.33,8.03013561]
[1738414425006,8.03013561,229.39,229.32,8.03013561]
[1738414425185,8.03013561,229.41,229.34,8.03013561]
[1738414426395,8.03013561,229.41,229.34,12.39033561]
[1738414426596,8.03013561,229.4,229.34,4.3602]
[1738414427014,8.03013561,229.41,229.34,12.39033561]
[1738414427528,8.03013561,229.4,229.33,8.03013561]
[1738414429324,8.03013561,229.4,229.33,12.39043561]
[1738414430230,8.03013561,229.39,229.32,8.03013561]
[1738414430416,8.03013561,229.37,229.31,7.7889]
[1738414433328,8.03013561,229.36,229.31,7.7889]
[1738414433513,8.03013561,229.35,229.31,1.5259]
[1738414433694,13.41184853,229.43,229.27,8.03013561]
[1738414433695,8.03013561,229.34,229.27,8.03013561]
[1738414434003,8.03013561,229.34,229.27,12.39163561]
[1738414434406,8.03013561,229.33,229.27,4.3615]
[1738414434621,8.03013561,229.33,229.26,18.78763561]
[1738414435330,8.03013561,229.33,229.26,12.39193561]
[1738414436202,8.03013561,229.34,229.28,4.3614]
[1738414438020,8.03013561,229.34,229.26,12.39193561]
[1738414439130,8.03013561,229.32,229.26,4.3618]
[1738414441139,8.03013561,229.32,229.25,13.91793561]
[1738414441443,8.03013561,229.32,229.25,5.8878]
[1738414442516,8.03013561,229.32,229.25,13.91793561]
[1738414444227,8.03013561,229.4,229.31,8.03013561]
[1738414444421,8.03013561,229.41,229.34,8.03013561]
[1738414445738,8.03013561,229.41,229.33,12.39043561]
[1738414445936,8.03013561,229.41,229.33,14.05333561]
[1738414448611,8.03013561,229.39,229.33,14.05333561]
[1738414449006,8.03013561,229.39,229.33,6.0232]
[1738414450936,8.03013561,229.39,229.33,4.3603]
[1738414451116,8.03013561,229.38,229.3,8.03013561]
[1738414452742,8.03013561,229.38,229.31,4.3609]
[1738414456352,8.03013561,229.38,229.32,8.03013561]
[1738414456536,8.03013561,229.4,229.32,8.03013561]
[1738414457053,114.72054244,229.46,229.32,8.03013561]
[1738414457054,8.03013561,229.43,229.35,14.59723561]
[1738414457235,8.03013561,229.43,229.36,1.5661]
[1738414457733,8.03013561,229.44,229.36,9.59623561]
[1738414457937,8.03013561,229.44,229.37,4.3597]
[1738414459843,8.03013561,229.44,229.37,12.38983561]
[1738414460773,8.03013561,229.46,229.37,12.38983561]
[1738414461553,8.03013561,229.46,229.39,8.03013561]
[1738414461755,17.1226781,229.47,229.39,8.03013561]
[1738414462156,17.1226781,229.47,229.41,8.03013561]
[1738414462459,17.1226781,229.47,229.43,8.03013561]
[1738414462958,17.1226781,229.47,229.44,4.3584]
[1738414464038,8.03013561,229.5,229.44,4.3584]
[1738414466735,8.03013561,229.5,229.42,28.03013561]
[1738414466937,8.03013561,229.49,229.42,28.03013561]
[1738414467756,8.03013561,229.5,229.43,8.03013561]
[1738414468059,8.03013561,229.5,229.43,12.38873561]
[1738414468973,8.03013561,229.5,229.43,4.3586]
[1738414471459,8.03013561,229.48,229.43,4.3586]
[1738414471760,8.03013561,229.48,229.4,12.38923561]
[1738414471957,8.03013561,229.47,229.4,4.3591]
[1738414472168,8.03013561,229.47,229.4,12.38923561]
[1738414472939,8.03013561,229.46,229.4,4.3591]
[1738414473139,8.03013561,229.45,229.4,4.3591]
[1738414474562,8.03013561,229.45,229.39,8.1332]
[1738414474766,8.03013561,229.44,229.39,8.1332]
[1738414475264,8.03013561,229.44,229.39,12.4925]
[1738414475762,8.03013561,229.45,229.39,12.4925]
[1738414477267,8.03013561,229.46,229.39,20.52263561]
[1738414478265,8.03013561,229.48,229.41,8.03013561]
[1738414478962,8.03013561,229.48,229.4,8.03013561]
[1738414479164,8.03013561,229.46,229.39,12.4925]
[1738414479544,8.03013561,229.46,229.39,20.52263561]
[1738414479749,8.03013561,229.47,229.39,20.52263561]
[1738414480776,8.03013561,229.46,229.39,12.4925]
[1738414487654,8.03013561,229.48,229.39,12.4925]
[1738414489283,8.03013561,229.52,229.44,8.03013561]
[1738414489473,17.23763453,229.53,229.46,8.03013561]
[1738414490057,8.03013561,229.52,229.46,8.03013561]
[1738414490475,8.03013561,229.52,229.4,4.3591]
[1738414490476,8.03013561,229.52,229.44,8.03013561]
[1738414490787,8.03013561,229.49,229.41,8.03013561]
[1738414491698,8.03013561,229.47,229.4,4.3591]
[1738414492484,8.03013561,229.47,229.39,20.52263561]
[1738414500186,8.03013561,229.47,229.39,16.16333561]
[1738414500373,8.03013561,229.46,229.39,8.1332]
[1738414500575,8.03013561,229.46,229.39,20.52263561]
[1738414501503,8.03013561,229.47,229.4,8.03013561]
[1738414502561,8.03013561,229.47,229.4,12.38923561]
[1738414502985,8.03013561,229.49,229.4,12.38923561]
[1738414503389,25.26777014,229.53,229.44,8.03013561]
[1738414504391,8.03013561,229.52,229.45,8.03013561]
[1738414505071,8.03013561,229.52,229.45,12.38833561]
[1738414505579,8.03013561,229.51,229.45,4.3582]
[1738414507093,8.03013561,229.5,229.43,8.03013561]
[1738414508097,8.03013561,229.49,229.42,8.03013561]
[1738414508393,8.03013561,229.49,229.41,8.03013561]
[1738414508567,8.03013561,229.48,229.41,8.03013561]
[1738414508986,8.03013561,229.47,229.4,12.38923561]
[1738414509186,8.03013561,229.48,229.41,8.03013561]
[1738414509387,8.03013561,229.48,229.41,12.38903561]
[1738414510165,8.03013561,229.47,229.41,4.3589]
[1738414510371,8.03013561,229.46,229.39,16.16333561]
[1738414510592,8.03013561,229.44,229.39,8.1332]
[1738414510997,8.03013561,229.45,229.39,8.1332]
[1738414512508,8.03013561,229.46,229.39,8.1332]
[1738414512794,8.03013561,229.45,229.39,8.1332]
[1738414513692,8.03013561,229.48,229.4,8.03013561]
[1738414513878,8.03013561,229.49,229.41,8.03013561]
[1738414514078,8.03013561,229.48,229.4,10.61776223]
[1738414514789,20.0,229.5,229.4,10.61776223]
[1738414514790,8.03013561,229.47,229.41,4.359]
[1738414519016,8.03013561,229.47,229.4,4.3591]
[1738414519718,8.03013561,229.48,229.4,12.38923561]
[1738414519909,8.03013561,229.48,229.41,2.58712515]
[1738414520219,8.03013561,229.48,229.42,4.3588]
[1738414521940,8.03013561,229.48,229.41,2.58712515]
[1738414521941,8.03013561,229.48,229.41,4.359]
[1738414523622,8.03013561,229.48,229.4,8.03013561]
[1738414523786,8.03013561,229.46,229.39,12.4924]
[1738414525410,8.03013561,229.46,229.4,2.58738562]
[1738414526020,8.03013561,229.48,229.4,14.97652123]
[1738414526520,8.03013561,229.48,229.4,12.38913561]
[1738414528221,8.03013561,229.48,229.41,2.58710834]
[1738414529102,8.03013561,229.46,229.41,2.58710834]
[1738414529926,8.03013561,229.46,229.4,4.359]
[1738414530724,8.03013561,229.46,229.39,8.1332]
[1738414530898,8.03013561,229.4,229.35,11.06454545]
[1738414532903,8.03013561,229.4,229.35,4.3599]
[1738414534332,8.03013561,229.39,229.34,1.6356]
[1738414534921,8.03013561,229.38,229.34,1.6356]
[1738414535105,8.03013561,229.37,229.34,1.6356]
[1738414538732,8.03013561,229.37,229.3,8.03013561]
[1738414538939,8.03013561,229.36,229.3,4.3609]
[1738414539130,8.03013561,229.35,229.3,4.3609]
[1738414539834,8.03013561,229.37,229.3,4.3609]
[1738414540035,8.03013561,229.37,229.3,12.39103561]
[1738414544645,8.03013561,229.37,229.29,8.03013561]
[1738414544843,8.03013561,229.37,229.28,1.5714]
[1738414544844,8.03013561,229.35,229.28,13.96273561]
[1738414545149,8.03013561,229.36,229.28,13.96273561]
[1738414547718,8.03013561,229.35,229.28,5.9326]
[1738414548217,8.03013561,229.34,229.28,5.9326]
[1738414548439,8.03013561,229.35,229.28,5.9326]
[1738414549019,8.03013561,229.34,229.28,5.9326]
[1738414552837,8.03013561,229.34,229.28,1.5714]
[1738414553221,8.03013561,229.33,229.28,1.5714]
[1738414555551,8.03013561,229.36,229.29,8.03013561]
[1738414555760,8.03013561,229.37,229.29,8.03013561]
[1738414556052,8.03013561,229.38,229.3,8.03013561]
[1738414556835,8.03013561,229.38,229.3,12.39103561]
[1738414557734,8.03013561,229.39,229.32,8.03013561]
[1738414558121,8.03013561,229.39,229.31,8.03013561]
[1738414558321,8.03013561,229.38,229.31,8.03013561]
[1738414559023,8.03013561,229.39,229.32,4.3607]
[1738414560741,8.03013561,229.42,229.34,8.03013561]
[1738414562263,8.03013561,229.42,229.34,12.39043561]
[1738414563768,8.03013561,229.4,229.33,7.8724]
[1738414563962,8.03013561,229.38,229.33,7.8724]
[1738414564472,8.03013561,229.38,229.33,12.2328]
[1738414565874,8.03013561,229.4,229.33,20.26293561]
[1738414566169,8.03013561,229.42,229.33,20.26293561]
[1738414571192,20.0,229.44,229.33,20.26293561]
[1738414571193,8.03013561,229.44,229.37,9.62723561]
[1738414571496,8.03013561,229.46,229.38,8.03013561]
[1738414572365,8.03013561,229.46,229.39,4.3593]
[1738414572694,82.6,229.47,229.39,4.3593]
[1738414572695,8.03013561,229.45,229.39,4.3593]
[1738414574597,8.03013561,229.44,229.39,4.3593]
[1738414574783,8.03013561,229.45,229.39,4.3593]
[1738414574987,8.03013561,229.46,229.39,4.3593]
[1738414575190,8.03013561,229.45,229.39,4.3593]
[1738414576469,8.03013561,229.46,229.39,12.38943561]
[1738414576872,8.03013561,229.46,229.39,4.3593]
[1738414578398,8.03013561,229.46,229.39,12.38943561]
[1738414581503,8.03013561,229.46,229.4,6.1924]
[1738414581675,90.63013561,229.47,229.41,4.359]
[1738414586632,82.6,229.47,229.42,8.03013561]
[1738414586911,8.03013561,229.49,229.42,12.38893561]
[1738414587303,28.03013561,229.5,229.42,12.38893561]
[1738414587504,8.03013561,229.5,229.42,12.38893561]
[1738414589225,8.03013561,229.5,229.43,8.03013561]
[1738414590026,8.03013561,229.5,229.42,8.03013561]
[1738414590211,8.03013561,229.48,229.41,4.359]
[1738414590590,8.03013561,229.46,229.4,6.1924]
[1738414591184,8.03013561,229.44,229.37,5.9567]
[1738414591389,8.03013561,229.42,229.37,5.9567]
[1738414592315,8.03013561,229.44,229.37,5.9567]
[1738414594620,8.03013561,229.42,229.37,5.9567]
[1738414597031,8.03013561,229.42,229.37,1.5971]
[1738414597986,8.03013561,229.42,229.37,5.9568]
[1738414598182,8.03013561,229.44,229.37,5.9568]
[1738414601314,8.03013561,229.46,229.39,4.3593]
[1738414602103,8.03013561,229.48,229.4,8.03013561]
[1738414602506,8.03013561,229.5,229.43,4.3586]
[1738414604820,8.03013561,229.5,229.42,8.03013561]
[1738414604988,8.03013561,229.5,229.42,12.38883561]
[1738414605188,8.03013561,229.48,229.42,4.3587]
[1738414607320,8.03013561,229.5,229.42,12.38883561]
[1738414607620,8.03013561,229.5,229.43,6.0205]
[1738414610821,8.03013561,229.49,229.43,6.0205]
[1738414611027,8.03013561,229.48,229.43,1.662]
[1738414611325,8.03013561,229.45,229.41,6.5128]
[1738414612927,8.03013561,229.47,229.41,10.8717]
[1738414615016,8.03013561,229.46,229.41,10.8717]
[1738414615331,8.03013561,229.45,229.41,6.5128]
[1738414616832,8.03013561,229.43,229.41,6.5128]
[1738414617041,8.03013561,229.43,229.39,4.3592]
[1738414617219,8.03013561,229.44,229.39,4.3592]
[1738414619340,8.03013561,229.43,229.38,1.6275]
[1738414620540,8.03013561,229.41,229.38,1.6275]
[1738414620748,8.03013561,229.39,229.33,4.3603]
[1738414620914,8.03013561,229.38,229.32,15.45034545]
[1738414621340,8.03013561,229.38,229.32,12.57034545]
[1738414621513,8.03013561,229.37,229.32,12.57034545]
[1738414621714,8.03013561,229.38,229.32,12.57034545]
[1738414621913,8.03013561,229.38,229.32,5.8657]
[1738414622325,8.03013561,229.36,229.32,1.505]
[1738414622529,8.03013561,229.35,229.32,1.505]
[1738414624018,8.03013561,229.35,229.3,10.3782]
[1738414624355,8.03013561,229.38,229.3,18.40833561]
[1738414626053,8.03013561,229.36,229.3,10.3782]
[1738414627366,8.03013561,229.36,229.3,4.3609]
[1738414627564,8.03013561,229.34,229.28,4.3614]
[1738414627733,8.03013561,229.33,229.27,1.505]
[1738414628136,8.03013561,229.28,229.25,6.2001]
[1738414628569,13.41184853,229.38,229.25,6.2001]
[1738414628570,8.03013561,229.3,229.25,6.2001]
[1738414628745,8.03013561,229.31,229.25,6.2001]
[1738414629273,8.03013561,229.3,229.25,6.2001]
[1738414629969,8.03013561,229.29,229.25,6.2001]
[1738414632237,8.03013561,229.27,229.22,1.5535]
[1738414632976,1.45517944,229.27,229.22,1.5535]
[1738414633354,8.03013561,229.28,229.22,5.916]
[1738414633654,8.03013561,229.29,229.22,5.916]
[1738414634176,8.03013561,229.29,229.22,13.94613561]
[1738414635540,8.03013561,229.29,229.22,5.916]
[1738414635738,8.03013561,229.29,229.22,13.94613561]
[1738414635960,8.03013561,229.3,229.24,4.3622]
[1738414636566,8.03013561,229.29,229.24,4.3622]
[1738414637079,8.03013561,229.3,229.24,4.3622]
[1738414637439,8.03013561,229.29,229.24,4.3622]
[1738414638482,8.03013561,229.31,229.24,12.39233561]
[1738414638975,90.63013561,229.33,229.26,8.03013561]
[1738414639867,82.6,229.33,229.26,8.03013561]
[1738414640161,8.03013561,229.32,229.26,4.3616]
[1738414640373,8.03013561,229.31,229.24,8.03013561]
[1738414640554,8.03013561,229.31,229.24,12.39213561]
[1738414640962,8.03013561,229.31,229.24,4.362]
[1738414641180,8.03013561,229.3,229.24,4.362]
[1738414643152,8.03013561,229.31,229.24,4.362]
[1738414643352,8.03013561,229.32,229.24,12.39213561]
[1738414643680,8.03013561,229.32,229.26,4.3618]
[1738414644193,8.03013561,229.35,229.28,8.03013561]
[1738414645380,8.03013561,229.33,229.28,4.3613]